[Event "*** Titled Tuesday Blitz"]
[Site "Chess.com"]
[Date "2020.11.24"]
[Round "7"]
[White "Fy_Rakotomaharo"]
[Black "GameOverBro"]
[Result "1-0"]
[WhiteElo "2695"]
[BlackElo "2505"]
[TimeControl "180+1"]
[EndTime "11:36:11 PST"]
[Termination "Fy_Rakotomaharo won on time"]

1. d4 {[%clk 0:03:00.9]} 1... d6 {[%clk 0:02:59.6]} 2. Bg5 {[%clk 0:03:00]} 2...
Nd7 {[%clk 0:02:59.3]} 3. Nc3 {[%clk 0:02:59.3]} 3... Ngf6 {[%clk 0:02:59.1]} 4.
e4 {[%clk 0:02:59]} 4... e5 {[%clk 0:02:59.2]} 5. Nf3 {[%clk 0:02:58.8]} 5... c6
{[%clk 0:02:59.5]} 6. a4 {[%clk 0:02:58.8]} 6... Be7 {[%clk 0:02:58.5]} 7. Bc4
{[%clk 0:02:58.8]} 7... Qc7 {[%clk 0:02:58.1]} 8. O-O {[%clk 0:02:58.9]} 8...
Nf8 {[%clk 0:02:56.4]} 9. Re1 {[%clk 0:02:59.4]} 9... Ng6 {[%clk 0:02:56.8]} 10.
a5 {[%clk 0:02:58.4]} 10... O-O {[%clk 0:02:55.8]} 11. h3 {[%clk 0:02:58.6]}
11... h6 {[%clk 0:02:55.8]} 12. Be3 {[%clk 0:02:58.6]} 12... Kh7 {[%clk
0:02:51.3]} 13. Qd2 {[%clk 0:02:57.3]} 13... Nh5 {[%clk 0:02:50.9]} 14. dxe5
{[%clk 0:02:42.7]} 14... dxe5 {[%clk 0:02:50.4]} 15. Na4 {[%clk 0:02:43.1]}
15... Nhf4 {[%clk 0:02:49.2]} 16. Bf1 {[%clk 0:02:43.3]} 16... f5 {[%clk
0:02:39.3]} 17. exf5 {[%clk 0:02:36.7]} 17... Bxf5 {[%clk 0:02:40.2]} 18. Bc5
{[%clk 0:02:31.6]} 18... Rad8 {[%clk 0:02:35.2]} 19. Qb4 {[%clk 0:02:14.4]}
19... Bxc2 {[%clk 0:02:02.2]} 20. Bxe7 {[%clk 0:02:10.6]} 20... Qxe7 {[%clk
0:02:01.6]} 21. Qxe7 {[%clk 0:02:05.2]} 21... Nxe7 {[%clk 0:02:02.5]} 22. Nxe5
{[%clk 0:02:05.8]} 22... Ned5 {[%clk 0:01:51.8]} 23. Nc5 {[%clk 0:02:03.5]}
23... b6 {[%clk 0:01:43.8]} 24. Nb7 {[%clk 0:01:46.2]} 24... Rc8 {[%clk
0:01:29.2]} 25. g3 {[%clk 0:01:33.7]} 25... Nh5 {[%clk 0:01:19]} 26. Rac1 {[%clk
0:01:30.6]} 26... Nb4 {[%clk 0:01:19]} 27. Rxc2 {[%clk 0:01:25.3]} 27... Nxc2
{[%clk 0:01:14.5]} 28. Bd3+ {[%clk 0:01:25.4]} 28... Kg8 {[%clk 0:01:14.8]} 29.
Bxc2 {[%clk 0:01:25.8]} 29... Rc7 {[%clk 0:01:11.9]} 30. a6 {[%clk 0:01:19.9]}
30... g5 {[%clk 0:01:00.5]} 31. Nc4 {[%clk 0:01:09.8]} 31... Kg7 {[%clk
0:00:54.6]} 32. Re6 {[%clk 0:01:09.4]} 32... Rf6 {[%clk 0:00:52.9]} 33. Rxf6
{[%clk 0:01:09.2]} 33... Nxf6 {[%clk 0:00:53.8]} 34. Bf5 {[%clk 0:01:04.3]}
34... Nd5 {[%clk 0:00:51.4]} 35. Nbd6 {[%clk 0:01:02.8]} 35... Kf8 {[%clk
0:00:46.2]} 36. Bc8 {[%clk 0:00:58.3]} 36... b5 {[%clk 0:00:42.1]} 37. Ne5
{[%clk 0:00:51.9]} 37... Ke7 {[%clk 0:00:39.1]} 38. Nef7 {[%clk 0:00:48.4]}
38... b4 {[%clk 0:00:31.8]} 39. Bb7 {[%clk 0:00:44]} 39... Kd7 {[%clk
0:00:25.2]} 40. Nc4 {[%clk 0:00:39.5]} 40... Ne7 {[%clk 0:00:23.6]} 41. Nxh6
{[%clk 0:00:36]} 41... Ke6 {[%clk 0:00:23.1]} 42. Ne3 {[%clk 0:00:29.1]} 42...
c5 {[%clk 0:00:21.1]} 43. Kf1 {[%clk 0:00:23.3]} 43... c4 {[%clk 0:00:21.5]} 44.
Ke1 {[%clk 0:00:23.7]} 44... c3 {[%clk 0:00:22]} 45. bxc3 {[%clk 0:00:24.6]}
45... bxc3 {[%clk 0:00:22.8]} 46. Kd1 {[%clk 0:00:25.5]} 46... Ng6 {[%clk
0:00:22.8]} 47. Nhg4 {[%clk 0:00:24.9]} 47... Nf8 {[%clk 0:00:18.9]} 48. Kc2
{[%clk 0:00:24.7]} 48... Nd7 {[%clk 0:00:19.4]} 49. h4 {[%clk 0:00:23.5]} 49...
gxh4 {[%clk 0:00:18.9]} 50. gxh4 {[%clk 0:00:24.4]} 50... Nc5 {[%clk 0:00:17.9]}
51. Bf3 {[%clk 0:00:23.9]} 51... Nxa6 {[%clk 0:00:14.2]} 52. Nd5 {[%clk
0:00:24.4]} 52... Rc5 {[%clk 0:00:12.8]} 53. Nge3 {[%clk 0:00:24.9]} 53... Nc7
{[%clk 0:00:10.7]} 54. Nxc3 {[%clk 0:00:23]} 54... a5 {[%clk 0:00:10.2]} 55. Kd3
{[%clk 0:00:21.5]} 55... Ke5 {[%clk 0:00:08.7]} 56. h5 {[%clk 0:00:21.8]} 56...
Ne6 {[%clk 0:00:08.1]} 57. h6 {[%clk 0:00:19.7]} 57... Rc8 {[%clk 0:00:08.5]}
58. Ned5 {[%clk 0:00:18.5]} 58... Ng5 {[%clk 0:00:08.3]} 59. Bg2 {[%clk
0:00:17.2]} 59... Rh8 {[%clk 0:00:08.8]} 60. f4+ {[%clk 0:00:17.6]} 60... Kf5
{[%clk 0:00:07.8]} 61. fxg5 {[%clk 0:00:18.5]} 61... Kxg5 {[%clk 0:00:08.6]} 62.
Nb6 {[%clk 0:00:15.9]} 62... Rxh6 {[%clk 0:00:08.6]} 63. Nc4 {[%clk 0:00:16.3]}
63... Rh2 {[%clk 0:00:08.4]} 64. Bc6 {[%clk 0:00:15.8]} 64... Rh3+ {[%clk
0:00:07.2]} 65. Kd4 {[%clk 0:00:16.2]} 65... Rh4+ {[%clk 0:00:06.6]} 66. Kc5
{[%clk 0:00:16.6]} 66... Kf4 {[%clk 0:00:06.5]} 67. Nd5+ {[%clk 0:00:15.6]}
67... Ke4 {[%clk 0:00:05.1]} 68. Nxa5 {[%clk 0:00:16.5]} 68... Rh5 {[%clk
0:00:04.5]} 69. Nb7 {[%clk 0:00:15.7]} 69... Ke5 {[%clk 0:00:04.3]} 70. Nd6
{[%clk 0:00:14.7]} 70... Rh1 {[%clk 0:00:04.3]} 71. Nc4+ {[%clk 0:00:14.7]} 1-0

[Event "*** Titled Tuesday Blitz"]
[Site "Chess.com"]
[Date "2020.11.24"]
[Round "7"]
[White "serhanberat_ozdemir"]
[Black "CraiggoryC"]
[Result "0-1"]
[WhiteElo "2324"]
[BlackElo "2162"]
[TimeControl "180+1"]
[EndTime "11:36:13 PST"]
[Termination "CraiggoryC won by checkmate"]

1. e4 {[%clk 0:03:00.9]} 1... e6 {[%clk 0:02:42.8]} 2. d4 {[%clk 0:03:00]} 2...
d5 {[%clk 0:02:43]} 3. Nd2 {[%clk 0:03:00.7]} 3... Be7 {[%clk 0:02:42.2]} 4.
Ngf3 {[%clk 0:03:00.7]} 4... Nf6 {[%clk 0:02:42.1]} 5. e5 {[%clk 0:03:00.2]}
5... Nfd7 {[%clk 0:02:42.8]} 6. Bd3 {[%clk 0:03:00.6]} 6... c5 {[%clk
0:02:43.5]} 7. c3 {[%clk 0:03:01.5]} 7... Nc6 {[%clk 0:02:43.9]} 8. O-O {[%clk
0:03:01.9]} 8... a5 {[%clk 0:02:44.6]} 9. Re1 {[%clk 0:02:52.9]} 9... cxd4
{[%clk 0:02:44.9]} 10. cxd4 {[%clk 0:02:52.5]} 10... Qb6 {[%clk 0:02:45.4]} 11.
Nb1 {[%clk 0:02:52.9]} 11... Nxd4 {[%clk 0:02:41.8]} 12. Nxd4 {[%clk 0:02:53.8]}
12... Qxd4 {[%clk 0:02:41.8]} 13. Nc3 {[%clk 0:02:51.5]} 13... Qb6 {[%clk
0:02:21.4]} 14. Qg4 {[%clk 0:02:37.6]} 14... g6 {[%clk 0:02:15.8]} 15. Be3
{[%clk 0:02:10.1]} 15... Qb4 {[%clk 0:02:14.8]} 16. Qe2 {[%clk 0:01:32.6]} 16...
Nxe5 {[%clk 0:01:32.7]} 17. a3 {[%clk 0:01:14.9]} 17... Qg4 {[%clk 0:01:09.9]}
18. f3 {[%clk 0:01:11.4]} 18... Qh5 {[%clk 0:00:54.5]} 19. Bb5+ {[%clk
0:00:48.3]} 19... Bd7 {[%clk 0:00:52.4]} 20. Bd4 {[%clk 0:00:40.5]} 20... Bf6
{[%clk 0:00:35]} 21. Bxe5 {[%clk 0:00:37.1]} 21... Bxe5 {[%clk 0:00:35.1]} 22.
Qxe5 {[%clk 0:00:37.6]} 22... Qxe5 {[%clk 0:00:35.3]} 23. Rxe5 {[%clk
0:00:38.3]} 23... Bxb5 {[%clk 0:00:35.7]} 24. Nxb5 {[%clk 0:00:38.8]} 24... Kd7
{[%clk 0:00:36.3]} 25. Rc1 {[%clk 0:00:34.2]} 25... Rhc8 {[%clk 0:00:36.3]} 26.
Ree1 {[%clk 0:00:32.2]} 26... a4 {[%clk 0:00:27.4]} 27. Kf2 {[%clk 0:00:28.7]}
27... Ra6 {[%clk 0:00:23.9]} 28. Rxc8 {[%clk 0:00:26.6]} 28... Kxc8 {[%clk
0:00:24.8]} 29. Rc1+ {[%clk 0:00:26.6]} 29... Kd8 {[%clk 0:00:20.6]} 30. Rc2
{[%clk 0:00:16.2]} 30... Ra5 {[%clk 0:00:17.2]} 31. Nc3 {[%clk 0:00:14.6]} 31...
b5 {[%clk 0:00:16.5]} 32. Ne2 {[%clk 0:00:12.4]} 32... e5 {[%clk 0:00:14]} 33.
Rc5 {[%clk 0:00:12.3]} 33... Ke7 {[%clk 0:00:11.7]} 34. Rxd5 {[%clk 0:00:12.6]}
34... Ke6 {[%clk 0:00:12.6]} 35. Rc5 {[%clk 0:00:12]} 35... Kd6 {[%clk
0:00:12.5]} 36. Rc2 {[%clk 0:00:12.1]} 36... b4 {[%clk 0:00:13]} 37. axb4 {[%clk
0:00:11.9]} 37... Rb5 {[%clk 0:00:13.4]} 38. Rc4 {[%clk 0:00:11.1]} 38... Kd5
{[%clk 0:00:13.9]} 39. Rc5+ {[%clk 0:00:11.3]} 39... Rxc5 {[%clk 0:00:12.8]} 40.
bxc5 {[%clk 0:00:12.2]} 40... Kxc5 {[%clk 0:00:13.1]} 41. Ke3 {[%clk 0:00:12.1]}
41... Kc4 {[%clk 0:00:12.8]} 42. Ke4 {[%clk 0:00:07.7]} 42... f6 {[%clk
0:00:12.4]} 43. f4 {[%clk 0:00:07.3]} 43... exf4 {[%clk 0:00:11.9]} 44. Nc3
{[%clk 0:00:05.8]} 44... Kb3 {[%clk 0:00:10.8]} 45. Nxa4 {[%clk 0:00:02.1]}
45... Kxa4 {[%clk 0:00:10.8]} 46. Kxf4 {[%clk 0:00:03]} 46... Kb3 {[%clk
0:00:09.1]} 47. g4 {[%clk 0:00:03.2]} 47... Kxb2 {[%clk 0:00:08.8]} 48. h4
{[%clk 0:00:03.5]} 48... Kc3 {[%clk 0:00:08.7]} 49. Ke4 {[%clk 0:00:04.4]} 49...
Kc4 {[%clk 0:00:08.3]} 50. h5 {[%clk 0:00:05]} 50... Kc5 {[%clk 0:00:07.6]} 51.
hxg6 {[%clk 0:00:05.3]} 51... hxg6 {[%clk 0:00:08.5]} 52. g5 {[%clk 0:00:06.2]}
52... f5+ {[%clk 0:00:08]} 53. Ke5 {[%clk 0:00:06.8]} 53... Kc4 {[%clk
0:00:07.4]} 54. Kf6 {[%clk 0:00:06.8]} 54... f4 {[%clk 0:00:07.8]} 55. Kxg6
{[%clk 0:00:07.7]} 55... f3 {[%clk 0:00:08.2]} 56. Kh7 {[%clk 0:00:07.7]} 56...
f2 {[%clk 0:00:09.1]} 57. g6 {[%clk 0:00:08.6]} 57... f1=Q {[%clk 0:00:10]} 58.
g7 {[%clk 0:00:09.5]} 58... Qf5+ {[%clk 0:00:09.6]} 59. Kh6 {[%clk 0:00:09.7]}
59... Qg4 {[%clk 0:00:09.4]} 60. Kh7 {[%clk 0:00:10.6]} 60... Qh5+ {[%clk
0:00:09.2]} 61. Kg8 {[%clk 0:00:10.7]} 61... Kd5 {[%clk 0:00:09.2]} 62. Kf8
{[%clk 0:00:11.5]} 62... Qf5+ {[%clk 0:00:09]} 63. Ke7 {[%clk 0:00:12]} 63...
Qe5+ {[%clk 0:00:08.6]} 64. Kf7 {[%clk 0:00:12.1]} 64... Qf5+ {[%clk 0:00:08.8]}
65. Ke7 {[%clk 0:00:12.5]} 65... Qg6 {[%clk 0:00:08.6]} 66. Kf8 {[%clk
0:00:12.9]} 66... Qf6+ {[%clk 0:00:08.9]} 67. Kg8 {[%clk 0:00:13.8]} 67... Ke6
{[%clk 0:00:07.8]} 68. Kh7 {[%clk 0:00:14.7]} 68... Qh4+ {[%clk 0:00:05.5]} 69.
Kg6 {[%clk 0:00:15.4]} 69... Qg4+ {[%clk 0:00:05.5]} 70. Kh6 {[%clk 0:00:15.5]}
70... Qh4+ {[%clk 0:00:05.2]} 71. Kg6 {[%clk 0:00:15.3]} 71... Qf6+ {[%clk
0:00:05.8]} 72. Kh7 {[%clk 0:00:15.8]} 72... Qf7 {[%clk 0:00:05.9]} 73. Kh8
{[%clk 0:00:15.8]} 73... Qh5+ {[%clk 0:00:05.4]} 74. Kg8 {[%clk 0:00:15.9]}
74... Kf6 {[%clk 0:00:05.5]} 75. Kf8 {[%clk 0:00:16.5]} 75... Qf7# {[%clk
0:00:05.2]} 0-1

[Event "*** Titled Tuesday Blitz"]
[Site "Chess.com"]
[Date "2020.11.24"]
[Round "7"]
[White "Kopytkin"]
[Black "tylityli"]
[Result "1-0"]
[WhiteElo "2435"]
[BlackElo "2333"]
[TimeControl "180+1"]
[EndTime "11:36:24 PST"]
[Termination "Kopytkin won on time"]

1. e4 {[%clk 0:03:00.9]} 1... e5 {[%clk 0:02:58.5]} 2. Nf3 {[%clk 0:02:59.4]}
2... Nc6 {[%clk 0:02:57.4]} 3. Bc4 {[%clk 0:02:59.9]} 3... Nf6 {[%clk
0:02:56.1]} 4. d3 {[%clk 0:02:59.4]} 4... Be7 {[%clk 0:02:54.9]} 5. Nc3 {[%clk
0:02:57.5]} 5... O-O {[%clk 0:02:54.6]} 6. a3 {[%clk 0:02:50]} 6... d6 {[%clk
0:02:39.6]} 7. h3 {[%clk 0:02:50.1]} 7... Be6 {[%clk 0:02:38.1]} 8. Be3 {[%clk
0:02:50.6]} 8... a6 {[%clk 0:02:35]} 9. Nd5 {[%clk 0:02:42.9]} 9... b5 {[%clk
0:02:32.8]} 10. Ba2 {[%clk 0:02:41.1]} 10... Re8 {[%clk 0:02:26.6]} 11. O-O
{[%clk 0:02:38.9]} 11... h6 {[%clk 0:02:23.6]} 12. Re1 {[%clk 0:02:38.4]} 12...
Nb8 {[%clk 0:02:14.7]} 13. c4 {[%clk 0:02:35.1]} 13... c6 {[%clk 0:02:13.6]} 14.
Bb6 {[%clk 0:02:16.8]} 14... Qc8 {[%clk 0:02:02.1]} 15. Nc7 {[%clk 0:02:16.9]}
15... Nbd7 {[%clk 0:01:57.5]} 16. Nxa8 {[%clk 0:02:08.1]} 16... Qxa8 {[%clk
0:01:54.8]} 17. Be3 {[%clk 0:02:07.6]} 17... c5 {[%clk 0:01:53.3]} 18. Nd2
{[%clk 0:01:57.8]} 18... Nf8 {[%clk 0:01:48]} 19. b4 {[%clk 0:01:57.4]} 19...
Qc8 {[%clk 0:01:43.7]} 20. Rc1 {[%clk 0:01:56]} 20... Ng6 {[%clk 0:01:32.5]} 21.
Nf1 {[%clk 0:01:41.7]} 21... Qd7 {[%clk 0:01:30.6]} 22. Qe2 {[%clk 0:01:34.8]}
22... Rc8 {[%clk 0:01:28]} 23. cxb5 {[%clk 0:01:33.7]} 23... axb5 {[%clk
0:01:26.6]} 24. Bxe6 {[%clk 0:01:33.1]} 24... Qxe6 {[%clk 0:01:27]} 25. bxc5
{[%clk 0:01:33.1]} 25... dxc5 {[%clk 0:01:26.8]} 26. Qb2 {[%clk 0:01:31.8]}
26... Qa6 {[%clk 0:01:19.3]} 27. Rc2 {[%clk 0:01:25.8]} 27... Nd7 {[%clk
0:01:15.6]} 28. Rb1 {[%clk 0:01:25]} 28... Rb8 {[%clk 0:01:13.4]} 29. Nd2 {[%clk
0:01:24.7]} 29... b4 {[%clk 0:01:02.5]} 30. axb4 {[%clk 0:01:21.1]} 30... Qxd3
{[%clk 0:00:59.7]} 31. b5 {[%clk 0:01:13.7]} 31... Nf4 {[%clk 0:00:50.3]} 32.
Bxf4 {[%clk 0:01:09]} 32... exf4 {[%clk 0:00:50.9]} 33. Qc3 {[%clk 0:01:04.2]}
33... Qd6 {[%clk 0:00:44.9]} 34. Nc4 {[%clk 0:01:04.3]} 34... Qg6 {[%clk
0:00:44]} 35. e5 {[%clk 0:00:58.7]} 35... f3 {[%clk 0:00:42]} 36. g3 {[%clk
0:00:55.9]} 36... Bh4 {[%clk 0:00:36.1]} 37. Kh2 {[%clk 0:00:52.7]} 37... Bg5
{[%clk 0:00:33.4]} 38. Rcb2 {[%clk 0:00:51.9]} 38... Qe4 {[%clk 0:00:26.5]} 39.
b6 {[%clk 0:00:48.4]} 39... h5 {[%clk 0:00:22.2]} 40. Re1 {[%clk 0:00:45.3]}
40... Qd5 {[%clk 0:00:20]} 41. h4 {[%clk 0:00:38.4]} 41... Be7 {[%clk
0:00:18.8]} 42. Rd2 {[%clk 0:00:37.9]} 42... Qc6 {[%clk 0:00:18]} 43. Qd3 {[%clk
0:00:35.6]} 43... Nxb6 {[%clk 0:00:17.5]} 44. Rb1 {[%clk 0:00:30.9]} 44... Nd7
{[%clk 0:00:15.3]} 45. Rxb8+ {[%clk 0:00:29.8]} 45... Nxb8 {[%clk 0:00:16.2]}
46. Qd5 {[%clk 0:00:30.2]} 46... Qc7 {[%clk 0:00:14.5]} 47. e6 {[%clk 0:00:28]}
47... f6 {[%clk 0:00:13.4]} 48. Nd6 {[%clk 0:00:27.8]} 48... g6 {[%clk
0:00:11.5]} 49. Ne8 {[%clk 0:00:25.2]} 49... Qc8 {[%clk 0:00:08.5]} 50. Nxf6+
{[%clk 0:00:20.3]} 50... Bxf6 {[%clk 0:00:08.1]} 51. e7+ {[%clk 0:00:20.7]}
51... Kg7 {[%clk 0:00:08]} 52. Qd8 {[%clk 0:00:20.4]} 52... Qxd8 {[%clk
0:00:06.6]} 53. exd8=Q {[%clk 0:00:20.4]} 53... Bxd8 {[%clk 0:00:06.5]} 54. Rxd8
{[%clk 0:00:21]} 54... Nc6 {[%clk 0:00:06.3]} 55. Rc8 {[%clk 0:00:20.9]} 55...
Ne5 {[%clk 0:00:06.1]} 56. Rxc5 {[%clk 0:00:20]} 56... Nd3 {[%clk 0:00:05.9]}
57. Rc2 {[%clk 0:00:20.1]} 57... Kf6 {[%clk 0:00:05.3]} 58. Kg1 {[%clk
0:00:20.4]} 58... Kf5 {[%clk 0:00:05.3]} 59. Rc3 {[%clk 0:00:20]} 59... Ne5
{[%clk 0:00:04.6]} 60. Kf1 {[%clk 0:00:19.4]} 60... Ke4 {[%clk 0:00:04.5]} 61.
Re3+ {[%clk 0:00:18.9]} 61... Kf5 {[%clk 0:00:03.9]} 62. Ke1 {[%clk 0:00:18.8]}
62... Kf6 {[%clk 0:00:02.5]} 63. Re4 {[%clk 0:00:18.9]} 63... Kf5 {[%clk
0:00:01.8]} 64. Rf4+ {[%clk 0:00:18.5]} 64... Ke6 {[%clk 0:00:01.9]} 65. Kd2
{[%clk 0:00:18.9]} 65... Ng4 {[%clk 0:00:01.4]} 66. Rxf3 {[%clk 0:00:17.7]}
66... Ne5 {[%clk 0:00:01.9]} 67. Re3 {[%clk 0:00:17.7]} 1-0

[Event "*** Titled Tuesday Blitz"]
[Site "Chess.com"]
[Date "2020.11.24"]
[Round "7"]
[White "Salem-AR"]
[Black "swimmerchess"]
[Result "0-1"]
[WhiteElo "2896"]
[BlackElo "2797"]
[TimeControl "180+1"]
[EndTime "11:36:27 PST"]
[Termination "swimmerchess won on time"]

1. e4 {[%clk 0:02:59.1]} 1... e5 {[%clk 0:02:58]} 2. Nf3 {[%clk 0:02:58.9]} 2...
Nc6 {[%clk 0:02:57.3]} 3. Bb5 {[%clk 0:02:59.5]} 3... a6 {[%clk 0:02:56.2]} 4.
Ba4 {[%clk 0:02:59.5]} 4... Nf6 {[%clk 0:02:55.9]} 5. O-O {[%clk 0:03:00.1]}
5... Be7 {[%clk 0:02:54.9]} 6. d3 {[%clk 0:03:00]} 6... b5 {[%clk 0:02:52.9]} 7.
Bb3 {[%clk 0:03:00.5]} 7... d6 {[%clk 0:02:53.5]} 8. a4 {[%clk 0:02:54]} 8... b4
{[%clk 0:02:51.4]} 9. a5 {[%clk 0:02:50.4]} 9... O-O {[%clk 0:02:50.6]} 10. Nbd2
{[%clk 0:02:49.8]} 10... Be6 {[%clk 0:02:43.7]} 11. Nc4 {[%clk 0:02:45.5]} 11...
h6 {[%clk 0:02:43.5]} 12. Be3 {[%clk 0:02:37.1]} 12... Qc8 {[%clk 0:02:41.4]}
13. Nfd2 {[%clk 0:02:30.7]} 13... d5 {[%clk 0:02:22.6]} 14. exd5 {[%clk
0:02:28.1]} 14... Nxd5 {[%clk 0:02:23.5]} 15. Ba4 {[%clk 0:02:27.1]} 15... Qb7
{[%clk 0:01:50.8]} 16. Ne4 {[%clk 0:01:16.3]} 16... Nxe3 {[%clk 0:01:40.6]} 17.
fxe3 {[%clk 0:01:17.2]} 17... Bxc4 {[%clk 0:01:14.6]} 18. dxc4 {[%clk
0:01:18.1]} 18... Nxa5 {[%clk 0:01:14.9]} 19. Ng3 {[%clk 0:00:17.7]} 19... Nxc4
{[%clk 0:01:10.4]} 20. Nf5 {[%clk 0:00:13.2]} 20... Bg5 {[%clk 0:01:07.1]} 21.
Qe2 {[%clk 0:00:12.5]} 21... Qe4 {[%clk 0:01:02.2]} 22. Bb3 {[%clk 0:00:11.9]}
22... Nd6 {[%clk 0:00:52.6]} 23. h4 {[%clk 0:00:12]} 23... Bxh4 {[%clk
0:00:32.6]} 24. Nxd6 {[%clk 0:00:10.3]} 24... cxd6 {[%clk 0:00:32.2]} 25. Rad1
{[%clk 0:00:10.9]} 25... Bg5 {[%clk 0:00:31.2]} 26. Rf3 {[%clk 0:00:09.4]} 26...
Rad8 {[%clk 0:00:27.8]} 27. Bd5 {[%clk 0:00:07]} 27... Qg4 {[%clk 0:00:26.9]}
28. Rdf1 {[%clk 0:00:05.2]} 28... e4 {[%clk 0:00:17.9]} 29. Rxf7 {[%clk
0:00:01.8]} 29... Qxe2 {[%clk 0:00:17.9]} 30. R7f2+ {[%clk 0:00:01.2]} 30... Kh7
{[%clk 0:00:18.4]} 31. Bxe4+ {[%clk 0:00:01.3]} 31... Kg8 {[%clk 0:00:15.9]} 32.
Bd5+ {[%clk 0:00:01.6]} 32... Kh8 {[%clk 0:00:14.8]} 33. Rxe2 {[%clk 0:00:02.1]}
33... Rxf1+ {[%clk 0:00:13]} 34. Kxf1 {[%clk 0:00:03]} 34... a5 {[%clk
0:00:13.9]} 35. e4 {[%clk 0:00:02.3]} 35... Bf6 {[%clk 0:00:14.5]} 36. b3 {[%clk
0:00:02.7]} 36... Rc8 {[%clk 0:00:14.1]} 37. Bc4 {[%clk 0:00:03.1]} 37... Rc5
{[%clk 0:00:13.6]} 38. Rd2 {[%clk 0:00:03.6]} 38... Be5 {[%clk 0:00:13.8]} 39.
Ke2 {[%clk 0:00:03.9]} 39... Kh7 {[%clk 0:00:13.6]} 40. Kf3 {[%clk 0:00:04.3]}
40... Kg6 {[%clk 0:00:13.5]} 41. Kg4 {[%clk 0:00:04.5]} 41... h5+ {[%clk
0:00:13.9]} 42. Kf3 {[%clk 0:00:04.4]} 42... Kf6 {[%clk 0:00:13.7]} 43. Rd1
{[%clk 0:00:04.2]} 43... g5 {[%clk 0:00:14]} 44. Rh1 {[%clk 0:00:04.9]} 44...
g4+ {[%clk 0:00:14.3]} 45. Ke3 {[%clk 0:00:05]} 45... Kg5 {[%clk 0:00:14.9]} 46.
Rf1 {[%clk 0:00:05.7]} 46... h4 {[%clk 0:00:12.7]} 47. Rf5+ {[%clk 0:00:05.7]}
47... Kg6 {[%clk 0:00:13.3]} 48. Bf7+ {[%clk 0:00:05.2]} 48... Kg7 {[%clk
0:00:13.7]} 49. Bc4 {[%clk 0:00:05.8]} 49... Rc7 {[%clk 0:00:14.1]} 50. Rg5+
{[%clk 0:00:05.4]} 50... Kh6 {[%clk 0:00:13.9]} 51. Rxg4 {[%clk 0:00:06.3]}
51... Kh5 {[%clk 0:00:13.4]} 52. Kf3 {[%clk 0:00:06.6]} 52... a4 {[%clk
0:00:12.8]} 53. Rg8 {[%clk 0:00:03.5]} 53... a3 {[%clk 0:00:12.8]} 54. Ra8
{[%clk 0:00:03.6]} 54... Kg5 {[%clk 0:00:11.7]} 55. Ra4 {[%clk 0:00:03.6]} 55...
Bc3 {[%clk 0:00:11.6]} 56. Ra5+ {[%clk 0:00:03.2]} 56... Kf6 {[%clk 0:00:11.7]}
57. Kg4 {[%clk 0:00:03.4]} 57... Rg7+ {[%clk 0:00:11.4]} 58. Kxh4 {[%clk
0:00:01.2]} 58... Rxg2 {[%clk 0:00:11.8]} 59. Bd3 {[%clk 0:00:02.1]} 59... Rd2
{[%clk 0:00:10.8]} 60. Kg4 {[%clk 0:00:01.9]} 60... Be5 {[%clk 0:00:10.6]} 61.
Kf3 {[%clk 0:00:02.3]} 61... Ke6 {[%clk 0:00:10.3]} 62. Ra4 {[%clk 0:00:02.9]}
62... Bc3 {[%clk 0:00:10.1]} 63. Bc4+ {[%clk 0:00:03.2]} 63... Ke5 {[%clk
0:00:09.6]} 64. Bd3 {[%clk 0:00:04.1]} 64... Kd4 {[%clk 0:00:09.5]} 65. Ra5
{[%clk 0:00:04.5]} 65... Rxd3+ {[%clk 0:00:08]} 66. cxd3 {[%clk 0:00:03.1]}
66... Kxd3 {[%clk 0:00:08.9]} 67. Ra6 {[%clk 0:00:01]} 67... Kc2 {[%clk
0:00:09.1]} 68. Ke2 {[%clk 0:00:01.2]} 68... Kxb3 {[%clk 0:00:09.4]} 0-1